[Event "Baku Open 2024"]
[Site "Baku"]
[Date "2024.07.04"]
[Round "6.33"]
[White "Rustamov, Rustam"]
[Black "Saravana, Krishnan P."]
[Result "1/2-1/2"]
[ECO "C07"]
[WhiteElo "2285"]
[BlackElo "2236"]
[Annotator "TA"]
[PlyCount "132"]
[EventDate "2024.06.29"]
[EventType "swiss"]
[EventCountry "AZE"]
[SourceTitle "playchess.com"]
[Source "ChessBase"]
[SourceQuality "1"]
[TimeControl "5400+30"]

{[%evp 14,132,33,12,18,21,9,0,0,0,0,14,18,-10,-18,-69,25,-39,0,-37,-49,-52,-34,-41,-39,-50,-61,-53,-65,-64,-53,-73,-48,-50,-20,-23,-22,-18,-14,-27,-18,-18,-2,-14,-14,-14,0,0,0,-9,0,-10,-10,-30,-31,-31,-43,-52,-3,-8,-5,-8,-9,-12,-14,-8,-8,-45,-15,-22,0,-50,0,0,0,0,0,0,0,-8,-10,-35,-35,-38,-42,-42,-35,-38,-31,-35,8,8,8,8,8,8,8,8,8,8,8,0,0,0,0,0,0,0,0,0,0,0,0,0,0,0,0,0,0,0,0]} 1. e4 {[%emt 0:00:02]} e6 {[%emt 0:00:08]} 2. d4 {[%emt 0:00:06]} d5 {[%emt 0:00:06]} 3. Nd2 {[%emt 0:00:05]} a6 {[%emt 0:01:34]} 4. Ngf3 {[%emt 0:01:19]} c5 {[%emt 0:00:34]} 5. dxc5 {[%emt 0:05:17]} Bxc5 {[%emt 0:00:26]} 6. Bd3 {[%emt 0:00:37]} Nc6 {[%emt 0:01:47]} 7. O-O {[%emt 0:02:19]} Nf6 {[%emt 0:02:29]} 8. c3 {[%emt 0:05:08]} Qc7 {[%emt 0:04:40]} 9. exd5 {[%emt 0:02:23]} Nxd5 {[%emt 0:00:59]} 10. Ne4 {[%emt 0:03:36]} Be7 {[%emt 0:03:14]} 11. Ng3 {[%emt 0:02:59]} Bd7 {[%emt 0:05:34]} 12. a4 {[%emt 0:07:55]} h5 {[%emt 0:06:18]} 13. Qc2 {[%emt 0:03:58]} h4 {[%emt 0:08:04]} 14. Ne2 {[%emt 0:00:18]} (14. Ne4 $11) 14... Bf6 {[%emt 0:02:41]} (14... h3 $15 15. g3 Rc8) 15. Bd2 {[%emt 0:06:42]} ({White should play} 15. h3 $11) 15... Ne5 {[%emt 0:04:06]} 16. Be4 {[%emt 0:02:22]} Nxf3+ {[%emt 0:04:28]} 17. Bxf3 {[%emt 0:00:22]} h3 {[%emt 0:00:09] [#] Threatens to win with ...hxg2.} 18. g3 {[%emt 0:01:23]} Bc6 {[%emt 0:00:52][%cal Od5c3]} 19. Nd4 {[%emt 0:06:48]} Bxd4 {[%emt 0:03:00]} 20. cxd4 {[%emt 0:01:12]} Qd7 {[%emt 0:00:09]} 21. Rfc1 {[%emt 0:06:36]} Ne7 {[%emt 0:02:03]} 22. Qd3 {[%emt 0:02:40]} Bxf3 {[%emt 0:00:39]} (22... Bxa4 $5 23. d5 Bc6 24. Rxc6 Nxc6 $17 (24... bxc6 25. Qc3 $11)) 23. Qxf3 {[%emt 0:00:08]} Qd5 {[%emt 0:00:05]} 24. Qxd5 {[%emt 0:00:37]} Nxd5 {[%emt 0:00:07]} 25. Kf1 {[%emt 0:00:35]} Kd7 {[%emt 0:05:38]} 26. f3 {[%emt 0:01:56]} f5 {[%emt 0:00:57]} 27. Ke2 {[%emt 0:00:32]} Rag8 {[%emt 0:02:03]} 28. b4 {[%emt 0:07:21]} Rc8 {[%emt 0:00:41]} 29. Kd3 {[%emt 0:01:24]} Rhg8 {[%emt 0:04:27]} 30. Rxc8 {[%emt 0:01:30]} Rxc8 $11 {[%emt 0:00:25][%mdl 4096] Endgame. KRB-KRN} 31. Rg1 {[%emt 0:01:12]} Ke7 {[%emt 0:04:14]} 32. Ra1 {[%emt 0:03:14]} b6 {[%emt 0:00:42]} 33. Rg1 {[%emt 0:04:04]} b5 {[%emt 0:01:08]} 34. axb5 {[%emt 0:02:18]} axb5 {[%emt 0:00:07]} 35. g4 $1 {[%emt 0:00:09]} Kf6 {[%emt 0:10:31]} (35... f4 $15 {is more appropriate.}) 36. Rg3 {[%emt 0:08:14]} Rh8 {[%emt 0:01:43]} 37. gxf5 {[%emt 0:02:25]} exf5 {[%emt 0:00:36]} 38. Bg5+ {[%emt 0:00:13]} Kf7 {[%emt 0:00:59]} 39. Bd2 {[%emt 0:00:06]} g6 {[%emt 0:01:29]} 40. Kc2 {[%emt 0:00:53]} Ne7 {[%emt 0:04:03]} 41. Kd3 {[%emt 0:00:50]} Nd5 {[%emt 0:10:01]} 42. Kc2 {[%emt 0:00:27]} Nb6 {[%emt 0:00:15]} (42... Kg7 $15) 43. Kd3 {[%emt 0:01:01]} Nc4 {[%emt 0:01:24]} 44. Bc3 {[%emt 0:01:41]} Rh5 {[%emt 0:00:57]} 45. Rg1 {[%emt 0:01:13]} Rh4 {[%emt 0:01:15]} 46. Ra1 {[%emt 0:00:47]} Rf4 {[%emt 0:00:28]} 47. Ra7+ {[%emt 0:00:35]} Ke6 {[%emt 0:00:18]} 48. Ke2 {[%emt 0:00:27]} g5 {[%emt 0:00:29]} 49. Rh7 {[%emt 0:01:14]} g4 {[%emt 0:01:20]} 50. fxg4 {[%emt 0:00:06]} fxg4 {[%emt 0:00:20] aiming for ...Re4+.} 51. Rh5 {[%emt 0:00:53]} Nb6 {[%emt 0:00:50]} 52. Rh6+ {[%emt 0:00:47] The position is equal.} ({But not} 52. Rxb5 Nd5 53. Bd2 Re4+ (53... Rxd4 54. Ra5 $11) 54. Kf2 (54. Kd3 $2 g3 $19) 54... Rxd4 $11) 52... Kd5 {[%emt 0:01:09]} 53. Rxb6 {[%emt 0:01:25] KRB-KR} g3 $1 {[%emt 0:00:06]} 54. Rxb5+ {[%emt 0:03:20]} Kc4 {[%emt 0:00:57]} 55. Rc5+ {[%emt 0:00:10]} Kb3 {[%emt 0:00:02]} 56. hxg3 {[%emt 0:01:40]} Rh4 {[%emt 0:00:17]} 57. gxh4 {[%emt 0:00:19] [#] White wants to mate with Kf3.} h2 {[%emt 0:00:06]} 58. Ke3 {[%emt 0:00:39]} h1=Q {[%emt 0:00:10] KQ-KRB} 59. h5 {[%emt 0:00:10]} Qh3+ {[%emt 0:00:16]} 60. Ke4 {[%emt 0:00:05]} Qg4+ {[%emt 0:00:15]} 61. Kd5 {[%emt 0:00:11]} Qxh5+ {[%emt 0:00:33]} 62. Kc6 {[%emt 0:00:05]} Qe8+ {[%emt 0:00:37]} 63. Kb6 {[%emt 0:00:25]} Qb8+ {[%emt 0:00:29]} 64. Kc6 {[%emt 0:00:17]} Qe8+ {[%emt 0:01:48]} 65. Kb6 {[%emt 0:00:45]} Qb8+ {[%emt 0:00:06]} 66. Kc6 {[%emt 0:00:05]} Qe8+ {[%emt 0:05:07] Weighted Error Value: White=0.08 (flawless) /Black=0.10 (very precise) .  Mistake:       	White=2     	Black=3      Inaccurate:     	White=3     	Black=4      OK:         	White=18    	Black=17     Best:        	White=3     	Black=4      Strong:       	White=1     	Black=1} 1/2-1/2

[Event "Baku Open 2024"]
[Site "Baku"]
[Date "2024.07.04"]
[Round "6.34"]
[White "Kurmangaliyeva, Liya"]
[Black "Guliev, Sarhan"]
[Result "1-0"]
[ECO "C54"]
[WhiteElo "2282"]
[BlackElo "2224"]
[Annotator "TA"]
[PlyCount "61"]
[EventDate "2024.06.29"]
[EventType "swiss"]
[EventCountry "AZE"]
[SourceTitle "playchess.com"]
[Source "ChessBase"]
[SourceQuality "1"]
[TimeControl "5400+30"]

{[%evp 13,61,30,29,26,20,20,12,16,18,13,0,0,0,0,0,-30,-49,-63,-61,-58,-41,-47,-43,-43,-44,-77,-88,-104,-118,-108,-119,-140,-135,-145,-135,-177,-183,-197,293,275,371,364,362,319,409,434,430,401,653,646]} 1. e4 {[%emt 0:00:09]} e5 {[%emt 0:00:34]} 2. Nf3 {[%emt 0:00:14]} Nc6 {[%emt 0:00:08]} 3. Bc4 {[%emt 0:00:13]} Bc5 {[%emt 0:00:46]} 4. c3 {[%emt 0:00:09]} Nf6 {[%emt 0:00:18]} 5. d3 {[%emt 0:00:12]} d6 {[%emt 0:00:49]} 6. Bg5 {[%emt 0:00:16]} h6 {[%emt 0:00:55]} 7. Bh4 {[%emt 0:00:06]} Qe7 {[%emt 0:00:49]} 8. b4 {[%emt 0:17:11]} Bb6 {[%emt 0:01:28]} 9. Nbd2 {[%emt 0:03:47]} g5 {[%emt 0:10:22]} 10. Bg3 {[%emt 0:00:18] The position is equal.} Nh5 {[%emt 0:00:17]} 11. a4 {[%emt 0:15:28] And now a5 would win.} a6 {[%emt 0:05:31]} 12. Bd5 {[%emt 0:05:21]} Qf6 {[%emt 0:04:00] ...g4 would now be deadly.} 13. Nc4 {[%emt 0:12:39]} Ba7 {[%emt 0:02:49] Threatens to win with ...Nxg3.} 14. b5 {[%emt 0:04:06]} Ne7 {[%emt 0:03:56]} 15. b6 {[%emt 0:02:07]} Nxd5 {[%emt 0:00:20]} (15... Bxb6 16. Nxb6 cxb6 17. Bc4 $11) 16. exd5 {[%emt 0:01:16]} Bxb6 {[%emt 0:03:59]} (16... cxb6 $6 17. Nfd2 Nxg3 18. hxg3 $14) 17. Nxb6 {[%emt 0:04:38]} cxb6 {[%emt 0:00:15]} 18. Nd2 {[%emt 0:01:12]} Qg6 {[%emt 0:00:41][%cal Oh5f4] Strongly threatening ...Nf4!} 19. Nc4 {[%emt 0:03:47][%cal Oc4d6] [#]} Bf5 $1 {[%emt 0:04:16]} 20. Nxb6 {[%emt 0:04:44] [#]} Rd8 {[%emt 0:04:09][%cal Oe8g8]} 21. d4 {[%emt 0:02:18]} O-O {[%emt 0:04:01]} 22. O-O {[%emt 0:00:41]} Bd3 {[%emt 0:01:43]} 23. Re1 {[%emt 0:02:01]} e4 {[%emt 0:04:04]} 24. f3 {[%emt 0:02:21][%cal Bf2f3,Bf3e4][%mdl 32]} f5 {[%emt 0:01:34]} 25. Bf2 {[%emt 0:00:14]} f4 $4 {[%emt 0:01:12][%mdl 8192]} (25... g4 $19 {and life is good for Black.} 26. fxg4 fxg4) 26. fxe4 $18 {[%emt 0:01:58]} g4 {[%emt 0:06:40][%cal Bg5g4,Bg4g3][%mdl 32]} 27. Qxd3 {[%emt 0:01:00]} g3 {[%emt 0:00:09] [#]} 28. Ra2 {[%emt 0:04:41]} Rde8 {[%emt 0:03:06] [#]} (28... Rf7 29. Qf3) 29. Qf3 $1 {[%emt 0:04:58]} gxf2+ {[%emt 0:07:36]} 30. Rxf2 {[%emt 0:00:07]} Ng3 {[%emt 0:00:03]} (30... Nf6 $142 31. Rfe2 (31. Qxf4 $2 {too greedy.} Nxe4 32. Rxe4 Rxf4 $19) 31... Kh8) 31. Nd7 {[%emt 0:02:29] Weighted Error Value: White=0.12 (very precise) /Black=0.50.  Missed win:     	---       	Black=1      Mistake:       	---       	Black=1      Inaccurate:     	White=3     	Black=1      OK:         	White=9     	Black=14     Best:        	White=1     	Black=2      Strong:       	---       	Black=1} ({Not} 31. hxg3 fxg3 $19) 1-0

[Event "Baku Open 2024"]
[Site "Baku"]
[Date "2024.07.04"]
[Round "6.35"]
[White "Kulnev, Aleksandr"]
[Black "Suleimen, Ergali"]
[Result "0-1"]
[ECO "E62"]
[WhiteElo "2127"]
[BlackElo "2254"]
[Annotator "RC"]
[PlyCount "148"]
[EventDate "2024.06.29"]
[EventType "swiss"]
[EventCountry "AZE"]
[SourceTitle "playchess.com"]
[Source "ChessBase"]
[SourceQuality "1"]
[TimeControl "5400+30"]

1. d4 {[%emt 0:00:07]} Nf6 {[%emt 0:03:41]} 2. c4 {[%emt 0:00:06]} g6 {[%emt 0:00:07]} 3. Nf3 {[%emt 0:00:06]} Bg7 {[%emt 0:00:07]} 4. g3 {[%emt 0:00:05]} O-O {[%emt 0:00:09]} 5. Bg2 {[%emt 0:00:14]} d6 {[%emt 0:00:21]} 6. Nc3 {[%emt 0:00:07]} c6 {[%emt 0:00:03]} 7. O-O {[%emt 0:01:16]} Bf5 {[%emt 0:03:07]} 8. Ne1 {[%emt 0:12:38]} e5 {[%emt 0:00:58]} 9. d5 {[%emt 0:01:52]} cxd5 {[%emt 0:01:17]} 10. cxd5 {[%emt 0:02:50]} a5 {[%emt 0:02:22]} 11. h3 {[%emt 0:14:04]} Na6 {[%emt 0:02:58]} 12. e4 {[%emt 0:00:24]} Bd7 {[%emt 0:00:14]} 13. a4 {[%emt 0:02:13]} Ne8 {[%emt 0:05:03]} 14. Be3 {[%emt 0:03:00]} f5 {[%emt 0:01:36]} 15. Nd3 {[%emt 0:10:10]} Nb4 {[%emt 0:19:30]} 16. exf5 {[%emt 0:02:39]} gxf5 {[%emt 0:00:58]} 17. Nxb4 {[%emt 0:00:26]} axb4 {[%emt 0:00:25]} 18. Ne2 {[%emt 0:00:29]} b5 {[%emt 0:03:32]} 19. a5 {[%emt 0:04:28]} Rxa5 {[%emt 0:02:48]} 20. Qb3 {[%emt 0:00:41]} Rxa1 {[%emt 0:06:23]} 21. Rxa1 {[%emt 0:00:08]} f4 {[%emt 0:04:29]} 22. gxf4 {[%emt 0:03:14]} Qh4 {[%emt 0:00:53]} 23. fxe5 {[%emt 0:01:59]} Bxh3 {[%emt 0:16:58]} 24. Nf4 {[%emt 0:13:07]} Rxf4 {[%emt 0:12:07]} 25. Bxf4 {[%emt 0:00:09]} Bxg2 {[%emt 0:00:02]} 26. Kxg2 {[%emt 0:00:09]} Qxf4 {[%emt 0:00:03]} 27. e6 {[%emt 0:00:17]} Bd4 {[%emt 0:01:52]} 28. Qg3+ {[%emt 0:03:11]} Qxg3+ {[%emt 0:00:06]} 29. Kxg3 {[%emt 0:02:03]} Kg7 {[%emt 0:05:22]} 30. Kf3 {[%emt 0:01:53]} Bxb2 {[%emt 0:02:06]} 31. Ra7+ {[%emt 0:00:12]} Kg6 {[%emt 0:00:11]} 32. Rb7 {[%emt 0:00:22]} Bc3 {[%emt 0:00:24]} 33. Rxb5 {[%emt 0:00:50]} Nc7 {[%emt 0:01:00]} 34. Rb6 {[%emt 0:01:43]} Nxd5 {[%emt 0:00:05]} 35. Rxd6 {[%emt 0:00:08]} Ne7 {[%emt 0:00:02]} 36. Rb6 {[%emt 0:04:42]} Kf5 {[%emt 0:00:05]} 37. Rb5+ {[%emt 0:00:13]} Kxe6 {[%emt 0:02:27]} 38. Rh5 {[%emt 0:00:06]} b3 {[%emt 0:00:05]} 39. Rxh7 {[%emt 0:00:04]} b2 {[%emt 0:00:03]} 40. Rh1 {[%emt 0:00:09]} Kd5 {[%emt 0:00:06]} 41. Ke3 {[%emt 0:03:07]} Kc4 {[%emt 0:00:24]} 42. Ke4 {[%emt 0:06:55]} Kb3 {[%emt 0:01:41]} 43. f4 {[%emt 0:01:23]} Kc2 {[%emt 0:00:13]} 44. f5 {[%emt 0:00:40]} b1=Q {[%emt 0:00:14]} 45. Rxb1 {[%emt 0:00:03]} Kxb1 {[%emt 0:00:05]} 46. f6 {[%emt 0:00:06]} Bxf6 {[%emt 0:00:04]} 47. Kf4 {[%emt 0:00:09]} Kc2 {[%emt 0:00:17]} 48. Ke4 {[%emt 0:00:05]} Kc3 {[%emt 0:00:06]} 49. Kf4 {[%emt 0:00:06]} Kd4 {[%emt 0:00:04]} 50. Kf3 {[%emt 0:00:05]} Nd5 {[%emt 0:00:05]} 51. Ke2 {[%emt 0:00:07]} Ke4 {[%emt 0:00:07]} 52. Kf2 {[%emt 0:00:06]} Bh4+ {[%emt 0:00:08]} 53. Kg2 {[%emt 0:00:17]} Kf4 {[%emt 0:00:05]} 54. Kh3 {[%emt 0:00:07]} Bg3 {[%emt 0:00:06]} 55. Kg2 {[%emt 0:00:04]} Kg4 {[%emt 0:00:05]} 56. Kf1 {[%emt 0:00:09]} Kf3 {[%emt 0:00:06]} 57. Kg1 {[%emt 0:00:02]} Nf4 {[%emt 0:00:12]} 58. Kh1 {[%emt 0:00:18]} Nd3 {[%emt 0:00:06]} 59. Kg1 {[%emt 0:00:03]} Nf2 {[%emt 0:00:05]} 60. Kf1 {[%emt 0:00:03]} Bh2 {[%emt 0:00:07]} 61. Ke1 {[%emt 0:00:03]} Ne4 {[%emt 0:00:16]} 62. Kf1 {[%emt 0:00:08]} Nd2+ {[%emt 0:00:08]} 63. Ke1 {[%emt 0:00:03]} Ke3 {[%emt 0:00:13]} 64. Kd1 {[%emt 0:00:02]} Kd3 {[%emt 0:00:12]} 65. Kc1 {[%emt 0:00:18]} Nc4 {[%emt 0:00:22]} 66. Kd1 {[%emt 0:00:11]} Bg3 {[%emt 0:00:05]} 67. Kc1 {[%emt 0:00:02]} Be1 {[%emt 0:00:23]} 68. Kd1 {[%emt 0:00:11]} Bc3 {[%emt 0:00:05]} 69. Kc1 {[%emt 0:00:02]} Bd2+ {[%emt 0:00:06]} 70. Kb1 {[%emt 0:00:04]} Kc3 {[%emt 0:00:04]} 71. Ka2 {[%emt 0:00:06]} Kc2 {[%emt 0:00:07]} 72. Ka1 {[%emt 0:00:05]} Bc1 {[%emt 0:00:06]} 73. Ka2 {[%emt 0:00:03]} Nb6 {[%emt 0:00:08]} 74. Ka1 {[%emt 0:00:07]} Nd5 {[%emt 0:00:03]} 0-1

[Event "Baku Open 2024"]
[Site "Baku"]
[Date "2024.07.04"]
[Round "6.36"]
[White "Abdinova, Narmin"]
[Black "Zhalmakhanov, Ramazan"]
[Result "1/2-1/2"]
[ECO "B22"]
[WhiteElo "2121"]
[BlackElo "2505"]
[Annotator "RC"]
[PlyCount "162"]
[EventDate "2024.06.29"]
[EventType "swiss"]
[EventCountry "AZE"]
[SourceTitle "playchess.com"]
[Source "ChessBase"]
[SourceQuality "1"]
[TimeControl "5400+30"]

1. e4 {[%emt 0:05:05]} c5 {[%emt 0:00:44]} 2. c3 {[%emt 0:00:03]} Nf6 {[%emt 0:01:02]} 3. e5 {[%emt 0:00:06]} Nd5 {[%emt 0:00:04]} 4. Nf3 {[%emt 0:00:06]} Nc6 {[%emt 0:02:21]} 5. d4 {[%emt 0:00:05]} cxd4 {[%emt 0:00:31]} 6. cxd4 {[%emt 0:00:04]} d6 {[%emt 0:00:14]} 7. Bc4 {[%emt 0:00:13]} dxe5 {[%emt 0:01:16]} 8. Nxe5 {[%emt 0:00:25]} e6 {[%emt 0:00:48]} 9. O-O {[%emt 0:00:44]} Be7 {[%emt 0:00:42]} 10. Bb5 {[%emt 0:12:42]} Bd7 {[%emt 0:01:23]} 11. Bxc6 {[%emt 0:00:12]} Bxc6 {[%emt 0:00:20]} 12. Nxc6 {[%emt 0:01:40]} bxc6 {[%emt 0:00:02]} 13. Qa4 {[%emt 0:00:34]} Qb6 {[%emt 0:00:13]} 14. Rd1 {[%emt 0:00:53]} O-O {[%emt 0:00:08]} 15. Nd2 {[%emt 0:01:18]} Qb5 {[%emt 0:00:36]} 16. Qxb5 {[%emt 0:10:48]} cxb5 {[%emt 0:00:04]} 17. Nf3 {[%emt 0:04:45]} Rfc8 {[%emt 0:00:15]} 18. Ne1 {[%emt 0:05:20]} Rc4 {[%emt 0:04:29]} 19. Be3 {[%emt 0:01:15]} Rac8 {[%emt 0:10:06]} 20. Kf1 {[%emt 0:01:11]} f5 {[%emt 0:03:29]} 21. Nd3 {[%emt 0:00:20]} Bf6 {[%emt 0:00:14]} 22. b3 {[%emt 0:08:19]} Rc2 {[%emt 0:01:25]} 23. Ne1 {[%emt 0:03:58]} R2c6 {[%emt 0:00:50]} 24. Nf3 {[%emt 0:00:40]} Rc2 {[%emt 0:01:12]} 25. Ne1 {[%emt 0:01:20]} R2c3 {[%emt 0:00:12]} 26. Bd2 {[%emt 0:01:31]} R3c6 {[%emt 1:10:50]} 27. Nf3 {[%emt 0:00:32]} Ra6 {[%emt 0:00:00]} 28. a3 {[%emt 0:11:07]} Rc2 {[%emt 0:00:00]} 29. Ne1 {[%emt 0:00:29]} Rb2 {[%emt 0:00:00]} 30. Nd3 {[%emt 0:00:13]} Rc2 {[%emt 0:00:00]} 31. Ne1 {[%emt 0:03:55]} Rc8 {[%emt 0:00:00]} 32. Nf3 {[%emt 0:00:05]} Rac6 {[%emt 0:00:00]} 33. Rdc1 {[%emt 0:06:21]} Rc2 {[%emt 0:00:00]} 34. Ke1 {[%emt 0:00:10]} Kf7 {[%emt 0:00:00]} 35. Kd1 {[%emt 0:04:43]} R2c6 {[%emt 0:00:00]} 36. a4 {[%emt 0:03:33]} Rxc1+ {[%emt 0:00:00]} 37. Rxc1 {[%emt 0:00:02]} Rxc1+ {[%emt 0:00:00]} 38. Kxc1 {[%emt 0:00:07]} bxa4 {[%emt 0:00:00]} 39. bxa4 {[%emt 0:00:17]} Nb6 {[%emt 0:00:00]} 40. a5 {[%emt 0:01:06]} Nc4 {[%emt 0:00:00]} 41. Kc2 {[%emt 0:01:40]} Ke7 {[%emt 0:00:00]} 42. Bb4+ {[%emt 0:01:36]} Kd7 {[%emt 0:00:00]} 43. Kb3 {[%emt 0:01:53]} Nd6 {[%emt 0:00:00]} 44. Bxd6 {[%emt 0:01:09]} Kxd6 {[%emt 0:00:00]} 45. Kc4 {[%emt 0:00:10]} Kc6 {[%emt 0:00:00]} 46. Nd2 {[%emt 0:04:26]} Be7 {[%emt 0:00:00]} 47. Nb3 {[%emt 0:01:41]} Bd6 {[%emt 0:00:00]} 48. h3 {[%emt 0:00:49]} a6 {[%emt 0:00:00]} 49. Nc1 {[%emt 0:00:43]} g5 {[%emt 0:00:00]} 50. f3 {[%emt 0:00:44]} h5 {[%emt 0:00:00]} 51. g4 {[%emt 0:03:04]} h4 {[%emt 0:00:00]} 52. Nd3 {[%emt 0:00:30]} Bc7 {[%emt 0:00:00]} 53. Nc5 {[%emt 0:01:13]} Bxa5 {[%emt 0:00:00]} 54. Nxe6 {[%emt 0:00:38]} fxg4 {[%emt 0:00:00]} 55. fxg4 {[%emt 0:00:01]} Bd2 {[%emt 0:00:00]} 56. d5+ {[%emt 0:00:34]} Kb6 {[%emt 0:00:00]} 57. Nc5 {[%emt 0:00:58]} Be3 {[%emt 0:00:00]} 58. Na4+ {[%emt 0:00:46]} Kc7 {[%emt 0:00:00]} 59. Kd3 {[%emt 0:00:04]} Bc1 {[%emt 0:00:00]} 60. Ke4 {[%emt 0:00:52]} a5 {[%emt 0:00:00]} 61. Ke5 {[%emt 0:00:14]} Bf4+ {[%emt 0:00:00]} 62. Ke6 {[%emt 0:00:11]} Bd6 {[%emt 0:00:00]} 63. Nc3 {[%emt 0:00:25]} Bf4 {[%emt 0:00:00]} 64. Ne2 {[%emt 0:01:20]} Bh2 {[%emt 0:00:00]} 65. Nc3 {[%emt 0:00:03]} Kb6 {[%emt 0:00:00]} 66. d6 {[%emt 0:00:24]} Kc6 {[%emt 0:00:00]} 67. d7 {[%emt 0:00:55]} Bc7 {[%emt 0:00:00]} 68. Ke7 {[%emt 0:00:35]} Kc5 {[%emt 0:00:00]} 69. Ne4+ {[%emt 0:00:07]} Kd5 {[%emt 0:00:00]} 70. Nxg5 {[%emt 0:00:17]} a4 {[%emt 0:00:00]} 71. Ne6 {[%emt 0:00:10]} Ba5 {[%emt 0:00:00]} 72. g5 {[%emt 0:00:05]} a3 {[%emt 0:00:00]} 73. g6 {[%emt 0:00:19]} a2 {[%emt 0:00:00]} 74. g7 {[%emt 0:00:08]} a1=Q {[%emt 0:00:00]} 75. g8=Q {[%emt 0:00:32]} Qa3+ {[%emt 0:00:00]} 76. Kf6 {[%emt 0:01:42]} Qc3+ {[%emt 0:00:00]} 77. Kg6 {[%emt 0:00:47]} Qc6 {[%emt 0:00:00]} 78. d8=Q+ {[%emt 0:00:56]} Bxd8 {[%emt 0:00:00]} 79. Qxd8+ {[%emt 0:00:09]} Kxe6 {[%emt 0:00:00]} 80. Qxh4 {[%emt 0:00:29]} Qe8+ {[%emt 0:00:00]} 81. Kg7 {[%emt 0:00:51]} Qf7+ {[%emt 0:00:00]} 1/2-1/2

[Event "Baku Open 2024"]
[Site "Baku"]
[Date "2024.07.04"]
[Round "6.37"]
[White "Vrashank Chouhan"]
[Black "Iskandarov, Misratdin"]
[Result "0-1"]
[ECO "E20"]
[WhiteElo "2209"]
[BlackElo "2524"]
[Annotator "TA"]
[PlyCount "64"]
[EventDate "2024.06.29"]
[EventType "swiss"]
[EventCountry "AZE"]
[SourceTitle "playchess.com"]
[Source "ChessBase"]
[SourceQuality "1"]
[TimeControl "5400+30"]

{[%evp 9,64,-27,-7,-16,20,-9,-7,-10,4,6,0,0,27,-16,-15,-18,0,-62,-45,-64,-63,-81,-98,-113,-87,-117,-114,-100,-88,-175,-170,-208,-57,-76,0,-29,-27,-27,-54,-27,-12,-13,-14,-8,-7,-17,-27,-158,-113,-1046,-541,-550,-531,-708,-702,-29962,-4732]} 1. d4 {[%emt 0:00:04][%cal Bd2d4,Bd4d5][%mdl 32]} Nf6 {[%emt 0:00:05]} 2. c4 {[%emt 0:00:20]} e6 {[%emt 0:00:29]} 3. Nc3 {[%emt 0:00:32]} Bb4 {[%emt 0:00:08]} 4. f3 {[%emt 0:00:15]} c5 {[%emt 0:00:06]} 5. d5 {[%emt 0:00:08] [#]} b5 $1 {[%emt 0:00:10]} 6. e4 $1 {[%emt 0:00:08]} d6 {[%emt 0:00:10]} 7. Nge2 {[%emt 0:01:04]} bxc4 {[%emt 0:00:34]} 8. Nf4 {[%emt 0:00:24] The position is equal.} g5 {[%emt 0:01:08]} (8... e5 $5 9. Nfe2 $8 h5 $11) 9. Nfe2 {[%emt 0:02:00]} exd5 {[%emt 0:00:28]} 10. exd5 {[%emt 0:01:40]} Qe7 {[%emt 0:00:06]} 11. Kf2 {[%emt 0:10:57]} Nbd7 {[%emt 0:00:46] Threatening ...Ne5.} 12. a3 {[%emt 0:03:12]} Ba5 {[%emt 0:14:06]} 13. Qa4 {[%emt 0:13:52]} (13. Ng3 $1 $11) 13... Bxc3 $15 {[%emt 0:08:45]} 14. Nxc3 {[%emt 0:00:50]} O-O $1 {[%emt 0:00:39]} 15. h4 {[%emt 0:14:32]} (15. Bxg5 $2 Ng4+ 16. fxg4 Qxg5 17. Qxc4 Ne5 $19) 15... g4 {[%emt 0:04:42]} 16. Qxc4 {[%emt 0:07:47]} Ne5 $1 {[%emt 0:02:21]} 17. Qf4 {[%emt 0:01:03]} Kh8 {[%emt 0:01:15]} 18. Bd2 {[%emt 0:10:13]} Rg8 {[%emt 0:03:02] Strongly threatening ...Nh5.} 19. Re1 {[%emt 0:13:20]} (19. Be2 $17) 19... Rb8 $19 {[%emt 0:09:16]} 20. b4 {[%emt 0:01:00] [#]} cxb4 {[%emt 0:00:07]} (20... gxf3 $1 $19 21. gxf3 Rg6 (21... Nh5 22. Qh6 $17)) 21. axb4 $15 {[%emt 0:00:07]} Bd7 {[%emt 0:06:25]} ({Black should play} 21... gxf3 $17 22. gxf3 Nh5) 22. Qd4 {[%emt 0:05:02]} gxf3 {[%emt 0:01:14]} 23. gxf3 {[%emt 0:00:05][%cal Of1e2]} Nh5 {[%emt 0:06:16] A dynamic duo of knights.} 24. Ne4 {[%emt 0:04:31][%cal Oe4d6] Repels Qf6} f6 {[%emt 0:00:31] And now ...Qg7 would win.} 25. Be2 $1 {[%emt 0:01:19]} Bb5 {[%emt 0:16:24]} 26. Bxb5 {[%emt 0:02:53]} Rxb5 {[%emt 0:00:24]} 27. Rhg1 {[%emt 0:00:27]} Rbb8 {[%emt 0:00:58]} 28. Ra1 {[%emt 0:01:20] [#]} (28. f4 $1 $11 Rxg1 (28... Ng4+ 29. Kf3 $11) 29. Rxg1) 28... Qd7 $1 $17 {[%emt 0:01:22] Some like it hot} 29. Rh1 {[%emt 0:03:50][%mdl 8192] Dodges Qh3. This move loses the game for White.} (29. Rxa7 $2 {perishes.} Qh3 30. Bg5 Qxf3+ (30... fxg5 $2 31. Nxd6 Qxf3+ 32. Ke1 $19) 31. Ke1 Rxb4 (31... fxg5 $2 32. Nxd6 Qf6 33. Nf7+ Nxf7 34. Qxf6+ Nxf6 35. Rxf7 $19) 32. Nxf6 Nxf6 $19 (32... Rxd4 33. Rxh7#) (32... Nd3+ 33. Kd2 Ng7 34. Bh6 Rb2+ 35. Qxb2 Qf2+ 36. Kxd3 Qxa7 37. Bxg7+ Rxg7 38. Rxg7)) (29. Rxg8+ Rxg8 30. Qc3 Rc8 $19 (30... Qh3 $2 31. Ke2 $19)) (29. Ke2 $17) 29... Qf5 {[%emt 0:01:26]} 30. Ra3 {[%emt 0:00:05]} Qg6 {[%emt 0:00:19] ( -> ...Qg2+)} 31. Rf1 {[%emt 0:00:38]} Rbe8 {[%emt 0:01:59][%cal Oe5f3] ...Nxf3! is the strong threat.} 32. Re3 {[%emt 0:01:23] [#]} Nxf3 $1 {[%emt 0:01:28][%mdl 512] Weighted Error Value: White=0.51/Black=0.34.  Loses game:     	White=1     	---        Mistake:       	White=3     	Black=2      Inaccurate:     	White=6     	Black=3      OK:         	White=6     	Black=9      Best:        	White=3     	Black=3      Strong:       	White=1     	Black=2} 0-1